[Event "January 9 Early 2024"]
[Site "https://www.chess.com"]
[Date "2024.01.11"]
[Round "3"]
[White "Marn, Jan"]
[Black "Rozum, Ivan"]
[Result "0-1"]
[Board "222"]
[TimeControl "180+1"]
[WhiteFideId "14619245"]
[BlackFideId "24104272"]
[WhiteElo "2460"]
[BlackElo "2690"]
[WhiteTeam "SLO"]
[BlackTeam "RUS"]
[WhiteClock "0:00:01"]
[BlackClock "0:00:10"]

1. b3 {[%clk 0:03:00]}  d5 {[%clk 0:02:57]} 2. Bb2 {[%clk 0:03:01]}  c6 {[%clk 0:02:56]} 3. e3 {[%clk 0:03:00]}  Bf5 {[%clk 0:02:55]} 4. g4 {[%clk 0:02:52]}  Bg6 {[%clk 0:02:53]} 5. h4 {[%clk 0:02:53]}  h5 {[%clk 0:02:52]} 6. g5 {[%clk 0:02:53]}  Nd7 {[%clk 0:02:52]} 7. Bg2 {[%clk 0:02:54]}  e5 {[%clk 0:02:50]} 8. d3 {[%clk 0:02:53]}  Bc5 {[%clk 0:02:48]} 9. Nd2 {[%clk 0:02:53]}  Ne7 {[%clk 0:02:48]} 10. Qe2 {[%clk 0:02:52]}  a5 {[%clk 0:02:38]} 11. a3 {[%clk 0:02:52]}  Qc7 {[%clk 0:02:35]} 12. Ngf3 {[%clk 0:02:51]}  O-O-O {[%clk 0:02:33]} 13. Bh3 {[%clk 0:02:50]}  f5 {[%clk 0:02:26]} 14. d4 {[%clk 0:02:39]}  Bd6 {[%clk 0:02:23]} 15. dxe5 {[%clk 0:02:33]}  Nxe5 {[%clk 0:02:24]} 16. O-O-O {[%clk 0:02:31]}  Kb8 {[%clk 0:02:22]} 17. Nxe5 {[%clk 0:02:30]}  Bxe5 {[%clk 0:02:23]} 18. Nf3 {[%clk 0:02:28]}  Bxb2+ {[%clk 0:02:18]} 19. Kxb2 {[%clk 0:02:28]}  f4 {[%clk 0:02:18]} 20. exf4 {[%clk 0:02:29]}  Be4 {[%clk 0:02:09]} 21. Nd4 {[%clk 0:01:27]}  Ng6 {[%clk 0:01:29]} 22. f3 {[%clk 0:00:43]}  Nxf4 {[%clk 0:01:28]} 23. Qd2 {[%clk 0:00:43]}  Bg6 {[%clk 0:01:23]} 24. Rde1 {[%clk 0:00:34]}  Rde8 {[%clk 0:01:20]} 25. Ne6 {[%clk 0:00:30]}  Nxe6 {[%clk 0:01:17]} 26. Bxe6 {[%clk 0:00:31]}  Rhf8 {[%clk 0:01:13]} 27. Rhf1 {[%clk 0:00:25]}  Rf4 {[%clk 0:00:58]} 28. Re3 {[%clk 0:00:15]}  a4 {[%clk 0:00:57]} 29. b4 {[%clk 0:00:13]}  Qd6 {[%clk 0:00:49]} 30. Rfe1 {[%clk 0:00:12]}  Rxh4 {[%clk 0:00:48]} 31. Re5 {[%clk 0:00:07]}  Rc4 {[%clk 0:00:40]} 32. f4 {[%clk 0:00:05]}  Rxc2+ {[%clk 0:00:40]} 33. Qxc2 {[%clk 0:00:06]}  Bxc2 {[%clk 0:00:41]} 34. Kxc2 {[%clk 0:00:06]}  g6 {[%clk 0:00:35]} 35. Kd3 {[%clk 0:00:06]}  Rf8 {[%clk 0:00:29]} 36. f5 {[%clk 0:00:05]}  gxf5 {[%clk 0:00:29]} 37. Bxf5 {[%clk 0:00:06]}  Ka7 {[%clk 0:00:25]} 38. g6 {[%clk 0:00:06]}  Qf6 {[%clk 0:00:25]} 39. Kd4 {[%clk 0:00:02]}  Qg7 {[%clk 0:00:18]} 40. Bd3 {[%clk 0:00:02]}  Re8 {[%clk 0:00:16]} 41. Bf5 {[%clk 0:00:01]}  h4 {[%clk 0:00:16]} 42. Re2 {[%clk 0:00:02]}  Qf6 {[%clk 0:00:11]} 43. Re3 {[%clk 0:00:01]}  Rxe5 {[%clk 0:00:10]} 44. Rxe5 {[%clk 0:00:01]}  Kb6 {[%clk 0:00:10]} 0-1

[Event "January 9 Early 2024"]
[Site "https://www.chess.com"]
[Date "2024.01.11"]
[Round "3"]
[White "Murzin, Volodar"]
[Black "Domingo Nunez, Alejandro"]
[Result "1-0"]
[Board "226"]
[TimeControl "180+1"]
[WhiteFideId "44155573"]
[BlackFideId "22245561"]
[WhiteElo "2917"]
[BlackElo "2694"]
[WhiteTeam "FID"]
[BlackTeam "ESP"]
[WhiteClock "0:00:07"]
[BlackClock "0:00:03"]

1. d4 {[%clk 0:03:00]}  g6 {[%clk 0:03:00]} 2. Nf3 {[%clk 0:03:00]}  Bg7 {[%clk 0:03:01]} 3. e4 {[%clk 0:02:58]}  c6 {[%clk 0:03:01]} 4. c4 {[%clk 0:02:55]}  d5 {[%clk 0:03:01]} 5. cxd5 {[%clk 0:02:54]}  cxd5 {[%clk 0:03:02]} 6. e5 {[%clk 0:02:55]}  Bg4 {[%clk 0:03:02]} 7. Nbd2 {[%clk 0:02:56]}  Nc6 {[%clk 0:03:02]} 8. h3 {[%clk 0:02:51]}  Bxf3 {[%clk 0:03:03]} 9. Nxf3 {[%clk 0:02:51]}  e6 {[%clk 0:03:03]} 10. Bd2 {[%clk 0:02:32]}  Nge7 {[%clk 0:03:03]} 11. h4 {[%clk 0:02:32]}  Nf5 {[%clk 0:03:02]} 12. Bc3 {[%clk 0:02:28]}  Qb6 {[%clk 0:03:02]} 13. g4 {[%clk 0:02:26]}  Nfe7 {[%clk 0:02:58]} 14. h5 {[%clk 0:02:25]}  h6 {[%clk 0:02:24]} 15. a4 {[%clk 0:02:14]}  gxh5 {[%clk 0:01:54]} 16. a5 {[%clk 0:02:11]}  Qd8 {[%clk 0:01:54]} 17. gxh5 {[%clk 0:01:57]}  a6 {[%clk 0:01:51]} 18. Bd3 {[%clk 0:01:56]}  Qd7 {[%clk 0:01:45]} 19. Rg1 {[%clk 0:01:54]}  Rg8 {[%clk 0:01:44]} 20. Bh7 {[%clk 0:01:51]}  O-O-O {[%clk 0:01:45]} 21. Bxg8 {[%clk 0:01:50]}  Rxg8 {[%clk 0:01:46]} 22. Qd2 {[%clk 0:01:29]}  Nf5 {[%clk 0:01:46]} 23. O-O-O {[%clk 0:01:17]}  Kb8 {[%clk 0:01:41]} 24. Kb1 {[%clk 0:01:17]}  Na7 {[%clk 0:01:29]} 25. Rg4 {[%clk 0:01:12]}  Rc8 {[%clk 0:01:27]} 26. Bb4 {[%clk 0:01:01]}  Qb5 {[%clk 0:01:23]} 27. Rdg1 {[%clk 0:00:46]}  Nc6 {[%clk 0:00:57]} 28. Bc5 {[%clk 0:00:16]}  Bxe5 {[%clk 0:00:37]} 29. Rg8 {[%clk 0:00:13]}  Bc7 {[%clk 0:00:19]} 30. Rxc8+ {[%clk 0:00:13]}  Kxc8 {[%clk 0:00:19]} 31. Qc2 {[%clk 0:00:10]}  Bxa5 {[%clk 0:00:15]} 32. Ne5 {[%clk 0:00:10]}  Nxe5 {[%clk 0:00:04]} 33. dxe5 {[%clk 0:00:11]}  Kd7 {[%clk 0:00:04]} 34. Rg8 {[%clk 0:00:11]}  Qc6 {[%clk 0:00:03]} 35. Rf8 {[%clk 0:00:11]}  d4 {[%clk 0:00:02]} 36. Rxf7+ {[%clk 0:00:11]}  Ke8 {[%clk 0:00:02]} 37. Rf8+ {[%clk 0:00:11]}  Kd7 {[%clk 0:00:03]} 38. Rxf5 {[%clk 0:00:09]}  exf5 {[%clk 0:00:01]} 39. Qxf5+ {[%clk 0:00:10]}  Qe6 {[%clk 0:00:02]} 40. Qxe6+ {[%clk 0:00:07]}  Kxe6 {[%clk 0:00:03]} 41. Bxd4 {[%clk 0:00:08]}  Kf5 {[%clk 0:00:03]} 42. Be3 {[%clk 0:00:08]}  Kg4 {[%clk 0:00:02]} 43. e6 {[%clk 0:00:07]}  Kxh5 {[%clk 0:00:03]} 44. e7 {[%clk 0:00:07]} 1-0

[Event "January 9 Early 2024"]
[Site "https://www.chess.com"]
[Date "2024.01.11"]
[Round "3"]
[White "Mushini Ajay"]
[Black "Goltseva, Ekaterina"]
[Result "1-0"]
[Board "228"]
[TimeControl "180+1"]
[WhiteFideId "35066188"]
[BlackFideId "24173770"]
[WhiteElo "2411"]
[BlackElo "2593"]
[WhiteTeam "IND"]
[BlackTeam "RUS"]
[WhiteClock "0:00:15"]
[BlackClock "0:00:04"]

1. c4 {[%clk 0:03:00]}  e5 {[%clk 0:02:57]} 2. Nc3 {[%clk 0:02:59]}  Nf6 {[%clk 0:02:57]} 3. g3 {[%clk 0:02:59]}  d5 {[%clk 0:02:55]} 4. cxd5 {[%clk 0:02:59]}  Nxd5 {[%clk 0:02:56]} 5. Bg2 {[%clk 0:02:58]}  Nb6 {[%clk 0:02:56]} 6. Nf3 {[%clk 0:02:58]}  Nc6 {[%clk 0:02:57]} 7. O-O {[%clk 0:02:57]}  Bc5 {[%clk 0:02:56]} 8. d3 {[%clk 0:02:54]}  O-O {[%clk 0:02:55]} 9. Bg5 {[%clk 0:02:52]}  f6 {[%clk 0:02:55]} 10. Bd2 {[%clk 0:02:50]}  Be6 {[%clk 0:02:55]} 11. Rc1 {[%clk 0:02:47]}  Be7 {[%clk 0:02:53]} 12. a3 {[%clk 0:02:46]}  Nd4 {[%clk 0:02:47]} 13. Nxd4 {[%clk 0:02:43]}  exd4 {[%clk 0:02:48]} 14. Ne4 {[%clk 0:02:44]}  Nd7 {[%clk 0:02:36]} 15. b4 {[%clk 0:02:04]}  c6 {[%clk 0:02:10]} 16. e3 {[%clk 0:01:32]}  f5 {[%clk 0:01:56]} 17. exd4 {[%clk 0:01:18]}  fxe4 {[%clk 0:01:54]} 18. dxe4 {[%clk 0:01:19]}  Nb6 {[%clk 0:01:45]} 19. Bc3 {[%clk 0:01:04]}  Nc4 {[%clk 0:01:38]} 20. d5 {[%clk 0:00:56]}  cxd5 {[%clk 0:00:56]} 21. exd5 {[%clk 0:00:52]}  Bf7 {[%clk 0:00:08]} 22. Qd4 {[%clk 0:00:50]}  Bf6 {[%clk 0:00:08]} 23. Qxc4 {[%clk 0:00:50]}  Rc8 {[%clk 0:00:09]} 24. Qb3 {[%clk 0:00:45]}  Bg5 {[%clk 0:00:09]} 25. Rcd1 {[%clk 0:00:39]}  Qc7 {[%clk 0:00:07]} 26. Ba1 {[%clk 0:00:33]}  Rfd8 {[%clk 0:00:06]} 27. Qf3 {[%clk 0:00:29]}  Qc2 {[%clk 0:00:03]} 28. d6 {[%clk 0:00:27]}  Qg6 {[%clk 0:00:02]} 29. Qxb7 {[%clk 0:00:25]}  Bf6 {[%clk 0:00:02]} 30. d7 {[%clk 0:00:23]}  Rb8 {[%clk 0:00:01]} 31. Qxa7 {[%clk 0:00:21]}  Bxa1 {[%clk 0:00:02]} 32. Rxa1 {[%clk 0:00:21]}  Qe6 {[%clk 0:00:01]} 33. Rad1 {[%clk 0:00:20]}  Qf6 {[%clk 0:00:02]} 34. Rfe1 {[%clk 0:00:19]}  Bb3 {[%clk 0:00:02]} 35. Bd5+ {[%clk 0:00:16]}  Bxd5 {[%clk 0:00:01]} 36. Rxd5 {[%clk 0:00:17]}  Qf7 {[%clk 0:00:02]} 37. Qxb8 {[%clk 0:00:15]}  Rxb8 {[%clk 0:00:01]} 38. d8=Q+ {[%clk 0:00:15]}  Rxd8 {[%clk 0:00:02]} 39. Rxd8+ {[%clk 0:00:15]}  Qf8 {[%clk 0:00:03]} 40. Rxf8+ {[%clk 0:00:16]}  Kxf8 {[%clk 0:00:04]} 41. b5 {[%clk 0:00:15]} 1-0

[Event "January 9 Early 2024"]
[Site "https://www.chess.com"]
[Date "2024.01.11"]
[Round "3"]
[White "Kashefi, Amir Hosein"]
[Black "Klekowski, Maciej"]
[Result "0-1"]
[Board "230"]
[TimeControl "180+1"]
[WhiteFideId "12557935"]
[BlackFideId "1132717"]
[WhiteElo "2619"]
[BlackElo "2867"]
[WhiteTeam "IRI"]
[BlackTeam "POL"]
[WhiteClock "0:00:01"]
[BlackClock "0:00:20"]

1. d4 {[%clk 0:02:59]}  f5 {[%clk 0:02:58]} 2. g3 {[%clk 0:02:59]}  g6 {[%clk 0:02:56]} 3. Bg2 {[%clk 0:02:59]}  Bg7 {[%clk 0:02:56]} 4. Nh3 {[%clk 0:02:57]}  Nf6 {[%clk 0:02:53]} 5. Nf4 {[%clk 0:02:53]}  e6 {[%clk 0:02:48]} 6. h4 {[%clk 0:02:46]}  d6 {[%clk 0:02:38]} 7. c4 {[%clk 0:02:36]}  e5 {[%clk 0:02:34]} 8. dxe5 {[%clk 0:02:32]}  dxe5 {[%clk 0:02:35]} 9. Qxd8+ {[%clk 0:02:31]}  Kxd8 {[%clk 0:02:35]} 10. Nd5 {[%clk 0:02:28]}  c6 {[%clk 0:02:33]} 11. Nxf6 {[%clk 0:02:23]}  Bxf6 {[%clk 0:02:34]} 12. Nc3 {[%clk 0:02:22]}  Be6 {[%clk 0:02:30]} 13. b3 {[%clk 0:02:21]}  Nd7 {[%clk 0:02:26]} 14. Bg5 {[%clk 0:02:17]}  Kc7 {[%clk 0:02:23]} 15. O-O-O {[%clk 0:02:14]}  Rhf8 {[%clk 0:02:07]} 16. Rd2 {[%clk 0:02:06]}  Rf7 {[%clk 0:01:44]} 17. Rhd1 {[%clk 0:01:56]}  Re8 {[%clk 0:01:43]} 18. Nd5+ {[%clk 0:01:43]}  cxd5 {[%clk 0:01:41]} 19. cxd5 {[%clk 0:01:42]}  Bxg5 {[%clk 0:01:35]} 20. hxg5 {[%clk 0:01:33]}  e4 {[%clk 0:01:35]} 21. Rc2+ {[%clk 0:00:48]}  Kb6 {[%clk 0:01:29]} 22. f4 {[%clk 0:00:42]}  Nc5 {[%clk 0:01:06]} 23. dxe6 {[%clk 0:00:40]}  Rxe6 {[%clk 0:01:07]} 24. b4 {[%clk 0:00:23]}  Na4 {[%clk 0:00:52]} 25. e3 {[%clk 0:00:21]}  Rc7 {[%clk 0:00:52]} 26. Rxc7 {[%clk 0:00:13]}  Kxc7 {[%clk 0:00:53]} 27. Rd2 {[%clk 0:00:08]}  Rc6+ {[%clk 0:00:43]} 28. Rc2 {[%clk 0:00:08]}  Nc3 {[%clk 0:00:43]} 29. Kd2 {[%clk 0:00:07]}  Nd5 {[%clk 0:00:42]} 30. Rxc6+ {[%clk 0:00:05]}  Kxc6 {[%clk 0:00:42]} 31. a3 {[%clk 0:00:04]}  Kb5 {[%clk 0:00:43]} 32. g4 {[%clk 0:00:04]}  Ka4 {[%clk 0:00:33]} 33. gxf5 {[%clk 0:00:04]}  gxf5 {[%clk 0:00:34]} 34. Bh3 {[%clk 0:00:03]}  Ne7 {[%clk 0:00:33]} 35. Kc3 {[%clk 0:00:02]}  Kxa3 {[%clk 0:00:34]} 36. Kc4 {[%clk 0:00:02]}  b6 {[%clk 0:00:19]} 37. b5 {[%clk 0:00:02]}  Kb2 {[%clk 0:00:18]} 38. Kd4 {[%clk 0:00:01]}  Kc2 {[%clk 0:00:17]} 39. Ke5 {[%clk 0:00:01]}  Kd2 {[%clk 0:00:17]} 40. Ke6 {[%clk 0:00:02]}  Kxe3 {[%clk 0:00:17]} 41. Kxe7 {[%clk 0:00:01]}  Kxf4 {[%clk 0:00:18]} 42. Kf6 {[%clk 0:00:02]}  e3 {[%clk 0:00:18]} 43. Bf1 {[%clk 0:00:02]}  Ke4 {[%clk 0:00:18]} 44. Be2 {[%clk 0:00:02]}  f4 {[%clk 0:00:19]} 45. Kg7 {[%clk 0:00:01]}  f3 {[%clk 0:00:20]} 0-1

[Event "January 9 Early 2024"]
[Site "https://www.chess.com"]
[Date "2024.01.11"]
[Round "3"]
[White "Paravyan, David"]
[Black "Samunenkov, Ihor"]
[Result "1/2-1/2"]
[Board "233"]
[TimeControl "180+1"]
[WhiteFideId "4194985"]
[BlackFideId "14187086"]
[WhiteElo "3011"]
[BlackElo "2761"]
[WhiteTeam "FID"]
[BlackTeam "UKR"]
[WhiteClock "0:00:36"]
[BlackClock "0:00:04"]

1. e4 {[%clk 0:03:00]}  c6 {[%clk 0:03:00]} 2. d4 {[%clk 0:03:00]}  d5 {[%clk 0:03:00]} 3. e5 {[%clk 0:03:01]}  Bf5 {[%clk 0:03:01]} 4. Nd2 {[%clk 0:03:00]}  e6 {[%clk 0:02:59]} 5. Nb3 {[%clk 0:03:01]}  Nd7 {[%clk 0:02:59]} 6. Nf3 {[%clk 0:03:01]}  a6 {[%clk 0:02:56]} 7. Be2 {[%clk 0:03:00]}  c5 {[%clk 0:02:56]} 8. c3 {[%clk 0:03:01]}  c4 {[%clk 0:02:52]} 9. Nbd2 {[%clk 0:03:01]}  Ne7 {[%clk 0:02:51]} 10. O-O {[%clk 0:03:01]}  Nc6 {[%clk 0:02:51]} 11. Ne1 {[%clk 0:03:01]}  h5 {[%clk 0:02:47]} 12. g3 {[%clk 0:02:56]}  g6 {[%clk 0:02:35]} 13. Ng2 {[%clk 0:02:56]}  Bh3 {[%clk 0:02:32]} 14. Re1 {[%clk 0:02:54]}  Bxg2 {[%clk 0:02:30]} 15. Kxg2 {[%clk 0:02:55]}  Bh6 {[%clk 0:02:28]} 16. h4 {[%clk 0:02:49]}  b5 {[%clk 0:02:27]} 17. Nf3 {[%clk 0:02:47]}  Bxc1 {[%clk 0:02:27]} 18. Qxc1 {[%clk 0:02:48]}  Qe7 {[%clk 0:02:17]} 19. Qf4 {[%clk 0:02:48]}  Rb8 {[%clk 0:01:48]} 20. Ng5 {[%clk 0:02:47]}  Nf8 {[%clk 0:01:47]} 21. b4 {[%clk 0:02:45]}  Nh7 {[%clk 0:01:29]} 22. Nxh7 {[%clk 0:02:44]}  Rxh7 {[%clk 0:01:30]} 23. a4 {[%clk 0:02:45]}  Rh8 {[%clk 0:01:09]} 24. axb5 {[%clk 0:02:44]}  axb5 {[%clk 0:01:10]} 25. Ra6 {[%clk 0:02:44]}  Kd7 {[%clk 0:01:10]} 26. Rea1 {[%clk 0:02:43]}  Rhc8 {[%clk 0:01:08]} 27. R1a3 {[%clk 0:02:27]}  Rc7 {[%clk 0:01:06]} 28. Bf3 {[%clk 0:02:25]}  Rbb7 {[%clk 0:01:02]} 29. Ra8 {[%clk 0:02:23]}  Ra7 {[%clk 0:00:50]} 30. R3xa7 {[%clk 0:02:22]}  Rxa7 {[%clk 0:00:51]} 31. Rh8 {[%clk 0:02:08]}  Ra3 {[%clk 0:00:50]} 32. g4 {[%clk 0:02:00]}  hxg4 {[%clk 0:00:46]} 33. Qxg4 {[%clk 0:02:00]}  Kc7 {[%clk 0:00:40]} 34. Rh7 {[%clk 0:01:19]}  Rxc3 {[%clk 0:00:37]} 35. Qf4 {[%clk 0:01:19]}  Nd8 {[%clk 0:00:36]} 36. h5 {[%clk 0:01:10]}  gxh5 {[%clk 0:00:21]} 37. Bxh5 {[%clk 0:01:10]}  Kb6 {[%clk 0:00:19]} 38. Bxf7 {[%clk 0:01:10]}  Nxf7 {[%clk 0:00:14]} 39. Rxf7 {[%clk 0:01:11]}  Qe8 {[%clk 0:00:14]} 40. Qf6 {[%clk 0:01:10]}  Ra3 {[%clk 0:00:11]} 41. Re7 {[%clk 0:01:06]}  Qg8+ {[%clk 0:00:11]} 42. Rg7 {[%clk 0:01:06]}  Qe8 {[%clk 0:00:12]} 43. Qh6 {[%clk 0:00:44]}  Ra7 {[%clk 0:00:10]} 44. Rg6 {[%clk 0:00:43]}  Re7 {[%clk 0:00:11]} 45. f4 {[%clk 0:00:43]}  Qf7 {[%clk 0:00:09]} 46. Kf3 {[%clk 0:00:39]}  Qf5 {[%clk 0:00:09]} 47. Rf6 {[%clk 0:00:34]}  Qe4+ {[%clk 0:00:08]} 48. Kg3 {[%clk 0:00:35]}  Qe3+ {[%clk 0:00:07]} 49. Kg2 {[%clk 0:00:35]}  Qe2+ {[%clk 0:00:06]} 50. Kg3 {[%clk 0:00:35]}  Qe3+ {[%clk 0:00:06]} 51. Kg2 {[%clk 0:00:36]}  Qe4+ {[%clk 0:00:06]} 52. Kg3 {[%clk 0:00:36]}  Qd3+ {[%clk 0:00:06]} 53. Kg2 {[%clk 0:00:36]}  Qe2+ {[%clk 0:00:04]} 54. Kg3 {[%clk 0:00:36]}  Qe3+ {[%clk 0:00:04]} 1/2-1/2

[Event "January 9 Early 2024"]
[Site "https://www.chess.com"]
[Date "2024.01.11"]
[Round "3"]
[White "Sieciechowicz, Marcin"]
[Black "Chernyavsky, Alexander"]
[Result "1-0"]
[Board "236"]
[TimeControl "180+1"]
[WhiteFideId "1130170"]
[BlackFideId "24131156"]
[WhiteElo "2698"]
[BlackElo "2477"]
[WhiteTeam "POL"]
[BlackTeam "RUS"]
[WhiteClock "0:00:03"]
[BlackClock "0:00:01"]

1. d4 {[%clk 0:02:56]}  Nf6 {[%clk 0:02:56]} 2. Bf4 {[%clk 0:02:56]}  g6 {[%clk 0:02:50]} 3. e3 {[%clk 0:02:55]}  Bg7 {[%clk 0:02:50]} 4. Nf3 {[%clk 0:02:56]}  O-O {[%clk 0:02:50]} 5. Be2 {[%clk 0:02:56]}  d6 {[%clk 0:02:51]} 6. c3 {[%clk 0:02:56]}  b6 {[%clk 0:02:49]} 7. O-O {[%clk 0:02:56]}  Bb7 {[%clk 0:02:49]} 8. h3 {[%clk 0:02:56]}  Nbd7 {[%clk 0:02:49]} 9. Nbd2 {[%clk 0:02:56]}  Ne4 {[%clk 0:02:48]} 10. a4 {[%clk 0:02:53]}  a5 {[%clk 0:02:47]} 11. Qc2 {[%clk 0:02:51]}  e5 {[%clk 0:02:37]} 12. Nxe4 {[%clk 0:02:31]}  exf4 {[%clk 0:02:37]} 13. exf4 {[%clk 0:02:32]}  Nf6 {[%clk 0:01:35]} 14. Bd3 {[%clk 0:02:26]}  Nd5 {[%clk 0:01:31]} 15. Qd2 {[%clk 0:02:21]}  Bh6 {[%clk 0:01:29]} 16. g3 {[%clk 0:02:04]}  Bg7 {[%clk 0:00:40]} 17. Rfe1 {[%clk 0:02:03]}  Qd7 {[%clk 0:00:37]} 18. Bf1 {[%clk 0:02:01]}  Bc6 {[%clk 0:00:37]} 19. b3 {[%clk 0:01:53]}  Rae8 {[%clk 0:00:36]} 20. Bg2 {[%clk 0:01:43]}  f5 {[%clk 0:00:28]} 21. Neg5 {[%clk 0:01:31]}  h6 {[%clk 0:00:29]} 22. Nh4 {[%clk 0:01:14]}  hxg5 {[%clk 0:00:27]} 23. fxg5 {[%clk 0:01:14]}  Rxe1+ {[%clk 0:00:24]} 24. Rxe1 {[%clk 0:01:14]}  Kh7 {[%clk 0:00:15]} 25. c4 {[%clk 0:01:07]}  Nb4 {[%clk 0:00:14]} 26. d5 {[%clk 0:01:06]}  Bb7 {[%clk 0:00:14]} 27. Qe2 {[%clk 0:01:05]}  Bc8 {[%clk 0:00:09]} 28. Bf3 {[%clk 0:00:56]}  Qd8 {[%clk 0:00:08]} 29. Qe7 {[%clk 0:00:42]}  Bd7 {[%clk 0:00:04]} 30. Qxd8 {[%clk 0:00:11]}  Rxd8 {[%clk 0:00:05]} 31. Re7 {[%clk 0:00:11]}  Na6 {[%clk 0:00:04]} 32. g4 {[%clk 0:00:08]}  Nc5 {[%clk 0:00:03]} 33. gxf5 {[%clk 0:00:07]}  gxf5 {[%clk 0:00:02]} 34. Bh5 {[%clk 0:00:07]}  Kg8 {[%clk 0:00:01]} 35. Bg6 {[%clk 0:00:05]}  Kf8 {[%clk 0:00:01]} 36. Rf7+ {[%clk 0:00:05]}  Kg8 {[%clk 0:00:02]} 37. Re7 {[%clk 0:00:04]}  Ne4 {[%clk 0:00:01]} 38. Bxf5 {[%clk 0:00:03]}  Bxf5 {[%clk 0:00:01]} 39. Nxf5 {[%clk 0:00:04]}  Bf8 {[%clk 0:00:01]} 40. Rxe4 {[%clk 0:00:03]} 1-0

[Event "January 9 Early 2024"]
[Site "https://www.chess.com"]
[Date "2024.01.11"]
[Round "3"]
[White "Guzman Lozano, Campo Elias"]
[Black "Osinovsky, Stepan"]
[Result "0-1"]
[Board "238"]
[TimeControl "180+1"]
[WhiteFideId "4403746"]
[BlackFideId "4157354"]
[WhiteElo "2157"]
[BlackElo "2397"]
[WhiteTeam "COL"]
[BlackTeam "RUS"]
[WhiteClock "0:00:04"]
[BlackClock "0:00:05"]

1. e4 {[%clk 0:02:42]}  e6 {[%clk 0:02:50]} 2. Qe2 {[%clk 0:02:40]}  Ne7 {[%clk 0:02:49]} 3. d4 {[%clk 0:02:39]}  c5 {[%clk 0:02:48]} 4. Nf3 {[%clk 0:02:36]}  cxd4 {[%clk 0:02:48]} 5. Nxd4 {[%clk 0:02:36]}  Nbc6 {[%clk 0:02:49]} 6. c3 {[%clk 0:02:35]}  Ng6 {[%clk 0:02:20]} 7. Nxc6 {[%clk 0:02:30]}  bxc6 {[%clk 0:02:11]} 8. Nd2 {[%clk 0:02:23]}  Qc7 {[%clk 0:02:00]} 9. Nf3 {[%clk 0:02:22]}  Rb8 {[%clk 0:01:48]} 10. b3 {[%clk 0:02:20]}  Be7 {[%clk 0:01:38]} 11. g3 {[%clk 0:02:17]}  Bf6 {[%clk 0:01:36]} 12. Bd2 {[%clk 0:02:15]}  O-O {[%clk 0:01:36]} 13. Rc1 {[%clk 0:02:14]}  d5 {[%clk 0:01:36]} 14. h4 {[%clk 0:02:02]}  Bb7 {[%clk 0:01:29]} 15. h5 {[%clk 0:02:01]}  Ne5 {[%clk 0:01:29]} 16. Bf4 {[%clk 0:01:37]}  Nxf3+ {[%clk 0:01:14]} 17. Qxf3 {[%clk 0:01:34]}  e5 {[%clk 0:01:14]} 18. Bd2 {[%clk 0:01:28]}  dxe4 {[%clk 0:01:14]} 19. Qf5 {[%clk 0:01:19]}  Rfd8 {[%clk 0:00:39]} 20. Be3 {[%clk 0:01:08]}  Qd7 {[%clk 0:00:33]} 21. Qxd7 {[%clk 0:00:56]}  Rxd7 {[%clk 0:00:34]} 22. Bc4 {[%clk 0:00:55]}  Bd8 {[%clk 0:00:24]} 23. Ke2 {[%clk 0:00:54]}  Bb6 {[%clk 0:00:23]} 24. Bxb6 {[%clk 0:00:44]}  axb6 {[%clk 0:00:24]} 25. a4 {[%clk 0:00:44]}  Rbd8 {[%clk 0:00:22]} 26. Rc2 {[%clk 0:00:41]}  Kf8 {[%clk 0:00:21]} 27. Rh4 {[%clk 0:00:40]}  f5 {[%clk 0:00:21]} 28. b4 {[%clk 0:00:31]}  c5 {[%clk 0:00:20]} 29. a5 {[%clk 0:00:30]}  cxb4 {[%clk 0:00:18]} 30. cxb4 {[%clk 0:00:29]}  Rc7 {[%clk 0:00:16]} 31. Bb3 {[%clk 0:00:19]}  Ba6+ {[%clk 0:00:15]} 32. Ke1 {[%clk 0:00:19]}  Rcd7 {[%clk 0:00:14]} 33. Rc1 {[%clk 0:00:14]}  Rd2 {[%clk 0:00:13]} 34. g4 {[%clk 0:00:13]}  Re2+ {[%clk 0:00:12]} 35. Kf1 {[%clk 0:00:11]}  Rc2+ {[%clk 0:00:13]} 36. Kg2 {[%clk 0:00:11]}  Rxc1 {[%clk 0:00:13]} 37. gxf5 {[%clk 0:00:10]}  bxa5 {[%clk 0:00:12]} 38. bxa5 {[%clk 0:00:08]}  Rb1 {[%clk 0:00:12]} 39. Be6 {[%clk 0:00:07]}  Rd2 {[%clk 0:00:11]} 40. h6 {[%clk 0:00:06]}  Be2 {[%clk 0:00:08]} 41. hxg7+ {[%clk 0:00:05]}  Kxg7 {[%clk 0:00:07]} 42. Rxe4 {[%clk 0:00:05]}  Bf1+ {[%clk 0:00:07]} 43. Kg3 {[%clk 0:00:04]}  Rd3+ {[%clk 0:00:06]} 44. Kh2 {[%clk 0:00:04]}  Rh3+ {[%clk 0:00:05]} 0-1

[Event "January 9 Early 2024"]
[Site "https://www.chess.com"]
[Date "2024.01.11"]
[Round "3"]
[White "De Sousa, Daniel Aguiar"]
[Black "Garkauskas, Otto Dmitry"]
[Result "1-0"]
[Board "239"]
[TimeControl "180+1"]
[WhiteFideId "44736797"]
[BlackFideId "2129523"]
[WhiteElo "2048"]
[BlackElo "2331"]
[WhiteTeam "BRA"]
[BlackTeam "BRA"]
[WhiteClock "0:00:07"]
[BlackClock "0:00:13"]

1. d4 {[%clk 0:02:52]}  d5 {[%clk 0:03:00]} 2. Nf3 {[%clk 0:02:51]}  c6 {[%clk 0:03:00]} 3. e3 {[%clk 0:02:48]}  Nf6 {[%clk 0:03:01]} 4. Bd3 {[%clk 0:02:48]}  Bg4 {[%clk 0:03:01]} 5. Nbd2 {[%clk 0:02:47]}  e6 {[%clk 0:03:01]} 6. b3 {[%clk 0:02:46]}  Bd6 {[%clk 0:03:01]} 7. Bb2 {[%clk 0:02:46]}  O-O {[%clk 0:03:01]} 8. O-O {[%clk 0:02:44]}  Nbd7 {[%clk 0:03:01]} 9. Re1 {[%clk 0:02:39]}  e5 {[%clk 0:03:01]} 10. dxe5 {[%clk 0:02:40]}  Nxe5 {[%clk 0:03:02]} 11. Be2 {[%clk 0:02:37]}  Nxf3+ {[%clk 0:03:01]} 12. Nxf3 {[%clk 0:02:35]}  Re8 {[%clk 0:03:00]} 13. h3 {[%clk 0:02:21]}  Bh5 {[%clk 0:03:00]} 14. Nd4 {[%clk 0:02:15]}  Bg6 {[%clk 0:02:59]} 15. Bd3 {[%clk 0:02:11]}  Ne4 {[%clk 0:02:59]} 16. c4 {[%clk 0:01:49]}  Qh4 {[%clk 0:02:55]} 17. Re2 {[%clk 0:01:37]}  Bh5 {[%clk 0:02:53]} 18. Bxe4 {[%clk 0:01:11]}  Bxe2 {[%clk 0:02:45]} 19. Bxh7+ {[%clk 0:00:54]}  Qxh7 {[%clk 0:02:46]} 20. Qxe2 {[%clk 0:00:52]}  c5 {[%clk 0:02:37]} 21. Nb5 {[%clk 0:00:46]}  Be5 {[%clk 0:02:36]} 22. Bxe5 {[%clk 0:00:38]}  Rxe5 {[%clk 0:02:37]} 23. cxd5 {[%clk 0:00:39]}  a6 {[%clk 0:02:26]} 24. Nc7 {[%clk 0:00:37]}  Rc8 {[%clk 0:02:21]} 25. d6 {[%clk 0:00:37]}  Qf5 {[%clk 0:02:17]} 26. Rd1 {[%clk 0:00:34]}  Qd7 {[%clk 0:02:17]} 27. Qg4 {[%clk 0:00:26]}  Qxg4 {[%clk 0:01:47]} 28. hxg4 {[%clk 0:00:24]}  Rd8 {[%clk 0:01:47]} 29. Kf1 {[%clk 0:00:16]}  Kf8 {[%clk 0:01:43]} 30. Ke2 {[%clk 0:00:16]}  b5 {[%clk 0:01:40]} 31. f4 {[%clk 0:00:16]}  Re4 {[%clk 0:01:37]} 32. Kf3 {[%clk 0:00:16]}  Re6 {[%clk 0:01:09]} 33. Nxe6+ {[%clk 0:00:15]}  fxe6 {[%clk 0:01:10]} 34. Ke4 {[%clk 0:00:15]}  Ke8 {[%clk 0:01:10]} 35. Ke5 {[%clk 0:00:15]}  Kd7 {[%clk 0:01:10]} 36. e4 {[%clk 0:00:15]}  c4 {[%clk 0:00:59]} 37. bxc4 {[%clk 0:00:14]}  bxc4 {[%clk 0:01:00]} 38. Rc1 {[%clk 0:00:14]}  Rc8 {[%clk 0:00:59]} 39. f5 {[%clk 0:00:15]}  exf5 {[%clk 0:00:55]} 40. gxf5 {[%clk 0:00:15]}  Rc6 {[%clk 0:00:54]} 41. Kf4 {[%clk 0:00:12]}  Kxd6 {[%clk 0:00:54]} 42. e5+ {[%clk 0:00:13]}  Kc5 {[%clk 0:00:52]} 43. e6 {[%clk 0:00:13]}  Rc8 {[%clk 0:00:43]} 44. Ke5 {[%clk 0:00:13]}  Kb4 {[%clk 0:00:42]} 45. e7 {[%clk 0:00:10]}  Ka3 {[%clk 0:00:31]} 46. Kd6 {[%clk 0:00:10]}  Kb2 {[%clk 0:00:31]} 47. Rxc4 {[%clk 0:00:09]}  Rxc4 {[%clk 0:00:17]} 48. e8=Q {[%clk 0:00:09]}  Rc3 {[%clk 0:00:13]} 49. Qe5 {[%clk 0:00:08]}  Kc2 {[%clk 0:00:13]} 50. Qxg7 {[%clk 0:00:07]} 1-0